[Event "American Cup Champions 2022"]
[Site "Saint Louis"]
[Date "2022.04.20"]
[Round "1.4"]
[White "Caruana, Fabiano"]
[Black "Xiong, Jeffery"]
[Result "1/2-1/2"]
[ECO "C42"]
[WhiteElo "2792"]
[BlackElo "2686"]
[Annotator "TA"]
[PlyCount "97"]
[EventDate "2022.04.20"]
[EventType "k.o."]
[EventCountry "USA"]
[SourceTitle "playchess.com"]
[Source "ChessBase"]
[SourceQuality "1"]
[TimeControl "5400+30"]

{[%evp 16,97,18,16,17,14,16,13,16,0,10,19,15,4,10,9,9,13,31,0,0,0,8,0,55,66,70,10,37,35,43,35,90,93,80,102,97,55,62,0,0,0,0,0,0,0,0,0,0,0,0,0,0,0,0,0,0,0,0,0,0,-4,0,0,0,0,0,0,0,-28,0,0,0,0,0,-79,0,0,0,-85,0,0,0,-71]} 1. e4 {[%emt 0:00:04]} e5 {[%emt 0:00:14]} 2. Nf3 {[%emt 0:00:05]} Nf6 {[%emt 0:00:16]} 3. Nxe5 {[%emt 0:01:38]} d6 {[%emt 0:00:12]} 4. Nf3 {[%emt 0:00:03]} Nxe4 {[%emt 0:00:10]} 5. d4 {[%emt 0:00:06]} d5 {[%emt 0:00:11]} 6. Bd3 {[%emt 0:00:05]} Bf5 {[%emt 0:00:32]} 7. O-O {[%emt 0:01:47]} Be7 {[%emt 0:00:17]} 8. Nc3 {[%emt 0:03:00]} Nc6 {[%emt 0:00:49]} 9. Re1 {[%emt 0:02:46][%cal Oc3d5]} Nxc3 {[%emt 0:00:15] C42: Petroff Defence: 3 Nxe5 and unusual White 3rd moves.} 10. bxc3 {[%emt 0:00:05]} Bxd3 {[%emt 0:00:07]} 11. Qxd3 {[%emt 0:01:48]} O-O {[%emt 0:00:06]} 12. Re2 {[%emt 0:03:24] is the legacy move (12.Bf4).} Qd7 {[%emt 0:22:46]} 13. Bf4 {[%emt 0:04:06]} Rfe8 {[%emt 0:04:30]} 14. Rae1 {[%emt 0:03:11]} a6 {[%emt 0:01:51] Prevents Qb5.} 15. h3 {[%emt 0:11:32]} Bd6 {[%emt 0:18:15] [#] And now ...Rxe2 would win.} 16. Ng5 $1 {[%emt 0:07:22]} g6 {[%emt 0:00:04] [#]} 17. Be5 $146 {[%emt 0:00:12]} ({Predecessor:} 17. Bxd6 Rxe2 18. Qxe2 Qxd6 19. h4 h6 20. Nh3 Rd8 21. h5 Kg7 22. hxg6 fxg6 23. Qg4 {1-0 (59) Leal,P (2325)-Wellen,L (2159) ICCF email 2013}) 17... Be7 {[%emt 0:07:31]} 18. Nf3 {[%emt 0:02:26]} b5 {[%emt 0:06:08]} 19. Qe3 {[%emt 0:09:00]} f6 {[%emt 0:13:24]} (19... Bf6 $11) 20. Bg3 $14 {[%emt 0:00:27]} Kf7 {[%emt 0:00:13]} 21. Nh2 {[%emt 0:12:17] &Bianco is more active.} (21. Qh6 $14 Kg8 22. Qe3) 21... h5 {[%emt 0:03:45]} (21... Bf8 $5 {[%cal Re8e3]} 22. Qf4 Rxe2 23. Rxe2 Bd6 $11) 22. Qf3 {[%emt 0:07:10]} b4 {[%emt 0:00:03]} 23. Re6 {[%emt 0:04:39] Threatens to win with Bh4.} bxc3 {[%emt 0:04:53]} (23... f5 $1 $14) 24. Bh4 $1 $16 {[%emt 0:02:29][%cal Re6f6]} (24. Qxc3 $2 Bb4 25. Qxc6 Qxc6 26. Rxc6 Rxe1+ 27. Nf1 Rc8 $19) 24... Qxe6 {[%emt 0:00:51]} 25. Rxe6 {[%emt 0:00:04]} Kxe6 {[%emt 0:00:04]} 26. Qxc3 {[%emt 0:02:55] Chess con chili.} Kd7 {[%emt 0:00:02]} 27. Nf1 {[%emt 0:03:51]} ({But not} 27. Qf3 Rab8 28. Qxd5+ Bd6 $11) ({Better is} 27. Qd3 $14) 27... Rab8 $11 {[%emt 0:01:13]} 28. g4 {[%emt 0:08:03]} hxg4 29. hxg4 {[%emt 0:00:03]} Rb1 {[%emt 0:06:30]} 30. Kg2 {[%emt 0:00:39]} Rd1 {[%emt 0:00:29]} 31. Qh3 {[%emt 0:03:03][%cal Oh4f6] Strongly threatening Bxf6!} Rxd4 {[%emt 0:03:25] ...Rh8 is the strong threat.} 32. Bxf6 {[%emt 0:00:09]} Bxf6 {[%emt 0:01:10]} 33. g5+ $1 {[%emt 0:00:04]} Re6 {[%emt 0:02:07]} 34. gxf6 {[%emt 0:00:06] aiming for Ne3.} Rf4 {[%emt 0:00:31]} 35. Ne3 {[%emt 0:01:40]} Rfxf6 {[%emt 0:00:16]} 36. Nxd5 {[%emt 0:00:05]} Rf5 {[%emt 0:00:15]} 37. Ne3 {[%emt 0:02:52]} Rh5 {[%emt 0:00:49]} 38. Qg4 {[%emt 0:00:45]} Rhe5 {[%emt 0:01:11]} 39. c4 {[%emt 0:01:31]} Ne7 {[%emt 0:01:21]} 40. Qd4+ {[%emt 0:00:39]} Kc8 {[%emt 0:00:02]} 41. Qa7 {[%emt 0:01:12]} Ra5 {[%emt 0:01:00]} 42. Qd4 {[%emt 0:00:42]} Rae5 {[%emt 0:02:10]} 43. Qa7 {[%emt 0:00:05]} Rg5+ {[%emt 0:01:03]} 44. Kf1 {[%emt 0:00:11]} Ra5 {[%emt 0:00:06]} 45. Qd4 {[%emt 0:00:41] [#]} (45. Qa8+ $11 {keeps the balance.} Kd7 46. Qh8) 45... Rae5 {[%emt 0:00:04]} ({Much weaker is} 45... Rxa2 46. Qg4 Kd7 47. c5 $11) ({Black should play} 45... Nf5 $1 $17 {[%cal Rf5d4]} 46. Qh8+ Kb7 47. Nxf5 Rxf5 48. Qb2+ Kc8 49. Qh8+ Kb7 50. Qb2+ Kc6) 46. Qa7 {[%emt 0:00:39]} Ra5 {[%emt 0:00:38]} (46... Kd7 $11) 47. Qd4 $17 {[%emt 0:00:07] [#]} Rae5 {[%emt 0:01:35]} ({Much worse is} 47... Rxa2 $6 48. Qg4 Kd7 49. c5 $11) (47... Nf5 $1 $17 {[%cal Rf5d4]} 48. Qh8+ Kb7 49. Nxf5 Rxf5 50. Qb2+ Kc6) 48. Qa7 $11 {[%emt 0:00:14]} Ra5 {[%emt 0:00:06]} (48... g5 $11) 49. Qd4 {[%emt 0:00:17] Weighted Error Value: White=0.11 (very precise) /Black=0.11 (very precise)} 1/2-1/2

[Event "American Cup Champions 2022"]
[Site "Saint Louis"]
[Date "2022.04.21"]
[Round "1.4"]
[White "Aronian, Levon"]
[Black "Robson, Ray"]
[Result "1/2-1/2"]
[ECO "B50"]
[WhiteElo "2772"]
[BlackElo "2676"]
[Annotator "TA"]
[PlyCount "147"]
[EventDate "2022.04.20"]
[EventType "k.o."]
[EventCountry "USA"]
[SourceTitle "playchess.com"]
[Source "ChessBase"]
[SourceQuality "1"]
[TimeControl "600+5"]

{[%evp 12,147,-11,-16,-14,-29,-29,-39,-29,-48,-40,-53,-43,-39,-44,-50,-43,-50,-47,-36,-44,-37,95,91,79,88,89,87,99,91,96,95,93,90,102,0,0,0,0,0,0,0,0,0,0,0,0,0,0,0,0,0,0,0,0,0,0,0,0,0,0,0,0,0,0,0,0,0,0,0,0,0,0,0,0,0,0,0,0,0,0,0,0,0,0,0,0,0,0,0,0,0,0,0,0,0,0,0,0,0,0,0,0,0,0,0,0,0,0,0,0,0,0,0,0,0,0,0,0,0,0,0,0,0,0,0,0,0,0,0,0,0,0,0,0,0,0,0]} 1. e4 {[%emt 0:00:03]} c5 {[%emt 0:00:02]} 2. Nf3 {[%emt 0:00:01]} d6 {[%emt 0:00:02]} 3. c3 {[%emt 0:00:02]} Nf6 {[%emt 0:00:05]} 4. Be2 {[%emt 0:00:02]} g6 {[%emt 0:00:30]} 5. O-O {[%emt 0:00:03]} Bg7 {[%emt 0:00:03]} 6. d3 {[%emt 0:00:08]} O-O {[%emt 0:00:06]} 7. Be3 {[%emt 0:00:02]} b6 {[%emt 0:00:18]} 8. Nbd2 {[%emt 0:00:02]} Bb7 {[%emt 0:00:03]} 9. Qb1 {[%emt 0:00:07]} e5 {[%emt 0:01:04]} 10. d4 {[%emt 0:00:44]} exd4 {[%emt 0:00:11]} 11. cxd4 {[%emt 0:00:02]} cxd4 {[%emt 0:01:29]} 12. Bxd4 {[%emt 0:00:16]} Nc6 {[%emt 0:00:43]} 13. Bc3 {[%emt 0:00:01]} d5 {[%emt 0:00:22]} 14. Bb5 {[%emt 0:02:43]} Nxe4 {[%emt 0:01:09]} (14... Rc8 {keeps more tension.} 15. exd5 Nxd5 16. Bxg7 Kxg7 17. Qe4 a6) 15. Nxe4 {[%emt 0:00:25]} dxe4 {[%emt 0:00:02]} 16. Bxg7 {[%emt 0:01:26]} exf3 {[%emt 0:01:24]} (16... Kxg7 $15 {keeps the upper hand.} 17. Qxe4 Qf6) 17. Bxc6 $16 {[%emt 0:00:08]} ({Wrong is} 17. Bxf8 $2 Qg5 18. g3 Qxb5 $19) 17... Bxc6 {[%emt 0:00:09]} 18. Bxf8 {[%emt 0:00:02]} Qg5 {[%emt 0:01:13]} 19. g3 {[%emt 0:00:02]} Qg4 {[%emt 0:00:09] [#]} 20. Kh1 $1 {[%emt 0:00:05]} Rxf8 {[%emt 0:01:20]} 21. Qd3 {[%emt 0:00:15]} Re8 {[%emt 0:00:18]} 22. Rac1 {[%emt 0:02:57]} Bb7 {[%emt 0:00:02]} 23. Rfe1 {[%emt 0:01:01]} (23. Rcd1 $16) 23... Re2 $11 {[%emt 0:00:10]} 24. Rxe2 {[%emt 0:00:32]} fxe2+ {[%emt 0:00:04]} 25. Kg1 {[%emt 0:00:03]} Bf3 {[%emt 0:01:00]} 26. h3 {[%emt 0:00:15]} Qf5 {[%emt 0:00:11]} 27. Qe3 {[%emt 0:00:37]} h5 {[%emt 0:00:02]} 28. Kh2 {[%emt 0:00:08]} Kh7 {[%emt 0:00:04]} 29. Re1 {[%emt 0:00:05]} Qd5 {[%emt 0:00:07]} 30. b3 {[%emt 0:00:05]} Kg7 {[%emt 0:00:06]} 31. Rxe2 {[%emt 0:00:05]} Bxe2 {[%emt 0:00:05]} 32. Qxe2 {[%emt 0:00:00]} Qd4 {[%emt 0:00:01]} 33. h4 {[%emt 0:00:03]} a5 {[%emt 0:00:05]} 34. Kg2 {[%emt 0:00:07]} Qd5+ {[%emt 0:00:01]} 35. Qf3 {[%emt 0:00:03]} Qe5 {[%emt 0:00:03]} 36. Qc6 {[%emt 0:00:06]} b5 {[%emt 0:00:03]} 37. a3 {[%emt 0:00:09]} b4 {[%emt 0:00:08]} 38. axb4 {[%emt 0:00:01]} axb4 {[%emt 0:00:01]} 39. Qf3 {[%emt 0:00:01]} Qd4 {[%emt 0:00:09]} 40. Kf1 {[%emt 0:00:08]} Kf8 {[%emt 0:00:11]} 41. Kg2 {[%emt 0:00:04]} Ke7 {[%emt 0:00:07]} 42. Qb7+ {[%emt 0:00:01]} Kf6 {[%emt 0:00:02]} 43. Qf3+ {[%emt 0:00:02]} Ke6 {[%emt 0:00:07]} 44. Qc6+ {[%emt 0:00:01]} Ke7 {[%emt 0:00:05]} 45. Qb7+ {[%emt 0:00:02]} Kf6 {[%emt 0:00:01]} 46. Qf3+ {[%emt 0:00:01]} Kg7 {[%emt 0:00:00]} 47. Kf1 $1 {[%emt 0:00:01]} Qd2 {[%emt 0:00:06]} 48. Kg2 {[%emt 0:00:09]} Qc3 {[%emt 0:00:05]} 49. Qd5 {[%emt 0:00:02]} Qf6 {[%emt 0:00:11]} 50. Qc5 $1 {[%emt 0:00:08]} Qc3 {[%emt 0:00:06]} 51. Qd5 {[%emt 0:00:01]} Qe1 {[%emt 0:00:06]} 52. Qd4+ {[%emt 0:00:03]} Kg8 {[%emt 0:00:03]} 53. Qd8+ {[%emt 0:00:02]} Kh7 {[%emt 0:00:03]} 54. Qd4 {[%emt 0:00:08]} Qe7 {[%emt 0:00:07]} 55. Qd5 {[%emt 0:00:07]} f6 {[%emt 0:00:02]} 56. Qd4 {[%emt 0:00:13]} Kg7 {[%emt 0:00:11]} 57. Kg1 {[%emt 0:00:14]} Qb7 {[%emt 0:00:05]} 58. Qc4 {[%emt 0:00:11]} Kh7 {[%emt 0:00:05]} 59. Qd4 {[%emt 0:00:04]} Qe7 {[%emt 0:00:04]} 60. Kg2 {[%emt 0:00:03]} f5 {[%emt 0:00:07]} 61. Kf1 {[%emt 0:00:15]} Kg8 {[%emt 0:00:04]} 62. Qd5+ {[%emt 0:00:06]} Kg7 {[%emt 0:00:03]} 63. Qd4+ {[%emt 0:00:01]} Kf7 {[%emt 0:00:02]} 64. Qd5+ {[%emt 0:00:00]} Kf6 {[%emt 0:00:06]} 65. Qd4+ {[%emt 0:00:02]} Ke6 {[%emt 0:00:07]} 66. Qe3+ {[%emt 0:00:02]} Kd7 {[%emt 0:00:02]} 67. Qxe7+ {[%emt 0:00:04]} Kxe7 {[%emt 0:00:01]} 68. f4 {[%emt 0:00:01]} Kd6 {[%emt 0:00:05]} 69. Ke2 {[%emt 0:00:02]} Kc5 {[%emt 0:00:05]} 70. Ke3 {[%emt 0:00:01]} Kd5 {[%emt 0:00:01]} 71. Kd3 $1 {[%emt 0:00:01]} Kc5 {[%emt 0:00:00]} 72. Ke3 {[%emt 0:00:01]} Kd5 {[%emt 0:00:01]} 73. Kd3 $1 {[%emt 0:00:01]} Kc5 {[%emt 0:00:01]} 74. Ke3 {[%emt 0:00:06]} 1/2-1/2

[Event "American Cup Champions 2022"]
[Site "Saint Louis"]
[Date "2022.04.21"]
[Round "1.4"]
[White "Dominguez Perez, Leinier"]
[Black "Shankland, Sam"]
[Result "1-0"]
[ECO "B90"]
[WhiteElo "2752"]
[BlackElo "2708"]
[Annotator "TA"]
[PlyCount "117"]
[EventDate "2022.04.20"]
[EventType "k.o."]
[EventCountry "USA"]
[SourceTitle "playchess.com"]
[Source "ChessBase"]
[SourceQuality "1"]
[TimeControl "600+5"]

{[%evp 22,116,54,40,70,67,69,79,64,51,66,54,63,66,76,30,41,44,51,0,27,33,43,29,36,15,28,30,48,4,8,0,0,0,0,6,36,0,27,13,18,22,50,44,43,51,46,59,92,84,84,75,113,121,118,102,216,195,207,187,206,164,153,168,158,154,166,163,167,164,179,145,217,218,478,143,136,8,1339,1292,1141,1367,1257,1230,29978,29979,29979,29980,29997,29980,29996,29997,29997,29997,29998,29999,29999]} 1. e4 {[%emt 0:00:01]} c5 {[%emt 0:00:00]} 2. Nf3 {[%emt 0:00:02]} d6 {[%emt 0:00:01]} 3. d4 {[%emt 0:00:01]} cxd4 {[%emt 0:00:00]} 4. Nxd4 {[%emt 0:00:01]} Nf6 {[%emt 0:00:01]} 5. Nc3 {[%emt 0:00:02]} a6 {[%emt 0:00:01]} 6. Be3 {[%emt 0:00:01]} e5 {[%emt 0:00:01]} 7. Nb3 {[%emt 0:00:01]} Be6 {[%emt 0:00:03]} 8. f3 {[%emt 0:00:02]} Nbd7 {[%emt 0:00:04][%cal Bb8d7,Bd7b6,Bb6d5][%mdl 32]} 9. g4 {[%emt 0:00:03]} h6 {[%emt 0:00:02]} 10. Qd2 {[%emt 0:00:01]} b5 {[%emt 0:00:02]} 11. O-O-O {[%emt 0:00:03]} Nb6 {[%emt 0:00:01]} 12. Qf2 {[%emt 0:00:08]} Rb8 {[%emt 0:00:01] [#] B90: Sicilian Najdorf: Unusual White 6th moves, 6 Be3 Ng4 and 6 Be3 e5.} 13. Nc5 $1 {[%emt 0:00:08]} b4 {[%emt 0:00:01] [#]} (13... Bc8 14. Nd3) 14. Nb1 $146 {[%emt 0:00:12]} ({Predecessor:} 14. Nxe6 fxe6 15. Nb1 a5 16. h4 Qc7 17. Bb5+ Nfd7 18. Nd2 Rc8 19. Nb3 Nc4 20. Bc5 {½-½ (38) Van Delft,M (2336)-Soderberg,P (2264) Amsterdam 2001}) 14... d5 {[%emt 0:00:02] White is better.} 15. Nxe6 {[%emt 0:01:01]} (15. Bxa6 Bxc5 16. Bxc5 Nbd7 $11) 15... fxe6 {[%emt 0:00:01]} 16. exd5 {[%emt 0:00:55]} Nbxd5 {[%emt 0:00:01]} 17. Nd2 {[%emt 0:01:15]} Qc7 {[%emt 0:00:51]} 18. Bd3 {[%emt 0:00:56]} (18. Bc4 $16) 18... Be7 $1 $11 {[%emt 0:00:34]} 19. Bg6+ {[%emt 0:00:04]} (19. Bxa6 O-O 20. Qe2 b3 21. Nxb3 Nxe3 22. Qxe3 Nd5 $15) 19... Kf8 {[%emt 0:00:23]} 20. Kb1 {[%emt 0:00:17]} ({White should play} 20. Rde1 $14) 20... Nxe3 {[%emt 0:00:32]} (20... a5 $5 {[%cal Ra5a4]}) 21. Qxe3 {[%emt 0:00:02]} Nd5 {[%emt 0:00:00]} 22. Qe4 {[%emt 0:02:11]} Bf6 {[%emt 0:01:48]} 23. Qc4 {[%emt 0:00:40]} Qxc4 {[%emt 0:01:13]} 24. Nxc4 {[%emt 0:00:01]} Ke7 {[%emt 0:00:02]} 25. Rhe1 {[%emt 0:00:32]} Rb5 {[%emt 0:00:30][%cal Bb8b5,Bb5c5,Bc5c8,Bc8d8][%mdl 32]} 26. Be4 {[%emt 0:00:14]} Rd8 {[%emt 0:00:34]} 27. Rd3 {[%emt 0:00:28]} Rc5 {[%emt 0:00:26]} 28. Nd2 {[%emt 0:00:51][%cal Bc4d2,Bd2b3,Bb3a5,Ba5c6][%mdl 32]} Rcc8 {[%emt 0:00:22]} 29. a3 {[%emt 0:00:32]} a5 {[%emt 0:01:14]} 30. axb4 {[%emt 0:00:02]} axb4 {[%emt 0:00:01]} 31. Nb3 {[%emt 0:00:00]} Nf4 {[%emt 0:00:07]} 32. Rxd8 {[%emt 0:00:14]} Rxd8 {[%emt 0:00:01]} 33. Na5 {[%emt 0:00:03]} Rd2 {[%emt 0:00:17]} 34. Nc6+ {[%emt 0:00:03]} Kf7 {[%emt 0:00:44]} 35. Nxb4 {[%emt 0:00:02]} Rxh2 {[%emt 0:00:04]} 36. Nc6 {[%emt 0:00:15]} g6 {[%emt 0:00:46]} 37. b4 {[%emt 0:00:01]} Ne2 {[%emt 0:00:01]} 38. Kb2 {[%emt 0:00:21]} Bh4 {[%emt 0:00:22]} (38... Nd4 $16) 39. Rd1 $18 {[%emt 0:00:44] b5 is the strong threat.} ({Don't play} 39. Nxe5+ Kg7 40. Ra1 Bf2) 39... Kf6 {[%emt 0:00:12]} 40. Rd8 {[%emt 0:00:20]} Bf2 {[%emt 0:00:28]} 41. Rg8 {[%emt 0:00:08]} Nf4 {[%emt 0:00:01]} 42. Kb3 {[%emt 0:00:07]} h5 {[%emt 0:00:03]} 43. gxh5 {[%emt 0:00:10]} gxh5 {[%emt 0:00:00]} 44. c4 {[%emt 0:00:07]} h4 {[%emt 0:00:05]} 45. c5 {[%emt 0:00:07]} h3 {[%emt 0:00:04]} 46. Rh8 {[%emt 0:00:04]} Rh1 {[%emt 0:00:34]} (46... Ne2 $16 47. Rh7 Ng3) 47. Nb8 {[%emt 0:00:01]} h2 $2 {[%emt 0:00:10] [#]} (47... Kg5 {is a better defense.} 48. c6 Rc1) 48. Nd7+ $2 {[%emt 0:00:10]} (48. c6 $1 $18 {[%cal Rc6c7] Hoping for c7.} Nd5 49. Bxd5 Rb1+ 50. Ka4) 48... Kg5 $16 {[%emt 0:00:05]} 49. c6 {[%emt 0:00:15] &Bianco is more active.} (49. Nxe5 $16 {Black must now prevent c6.} Bd4 50. Nf7+ Kf6 51. Nh6) 49... Nd5 $2 {[%emt 0:00:13][%mdl 8192] This costs Black the game.} (49... Bh4 $11 50. Rg8+ (50. Nxe5 Rb1+ 51. Bxb1 h1=Q $11) 50... Kh5 51. Rh8+ Kg5 52. Nxe5 (52. Rg8+ Kh5 $11) 52... Rb1+ 53. Bxb1 h1=Q) 50. Bxd5 $18 {[%emt 0:00:03]} exd5 {[%emt 0:00:01][%mdl 4096] Endgame KRB-KRN} 51. c7 {[%emt 0:00:02]} Rb1+ {[%emt 0:00:53]} 52. Ka4 {[%emt 0:00:00]} Bh4 {[%emt 0:00:08]} 53. c8=Q {[%emt 0:00:02] White mates.} h1=Q {[%emt 0:00:01]} 54. Qd8+ {[%emt 0:00:07]} Kf5 {[%emt 0:00:05]} 55. Rh5+ {[%emt 0:00:06]} Kg6 {[%emt 0:00:01]} 56. Qe8+ {[%emt 0:00:01]} Kg7 {[%emt 0:00:02]} 57. Qxe5+ {[%emt 0:00:08]} Kf7 {[%emt 0:00:01]} 58. Rh7+ {[%emt 0:00:08]} Kg6 {[%emt 0:00:00]} 59. Qh5# {[%emt 0:00:02] Weighted Error Value: White=0.20 (precise) /Black=0.35} 1-0

[Event "American Cup Champions 2022"]
[Site "Saint Louis"]
[Date "2022.04.22"]
[Round "2.1"]
[White "Caruana, Fabiano"]
[Black "Sevian, Samuel"]
[Result "1/2-1/2"]
[ECO "E49"]
[WhiteElo "2792"]
[BlackElo "2684"]
[Annotator "TA"]
[PlyCount "77"]
[EventDate "2022.04.20"]
[EventType "k.o."]
[EventCountry "USA"]
[SourceTitle "playchess.com"]
[Source "ChessBase"]
[SourceQuality "1"]
[TimeControl "5400+30"]

{[%evp 18,77,0,-19,0,0,0,-9,-14,-13,-18,-15,-15,-23,-21,-27,-14,-16,0,0,0,0,0,0,0,0,0,0,0,0,0,0,0,3,1,0,2,0,0,0,0,0,0,0,0,0,0,-8,0,0,0,0,0,0,0,0,0,0,0,0,0,0]} 1. d4 {[%emt 0:00:05]} Nf6 {[%emt 0:00:10]} 2. c4 {[%emt 0:00:06]} e6 {[%emt 0:00:07]} 3. Nc3 {[%emt 0:00:10]} Bb4 {[%emt 0:00:10]} 4. e3 {[%emt 0:00:04]} O-O {[%emt 0:00:23]} 5. Bd3 {[%emt 0:00:07]} d5 {[%emt 0:00:21]} 6. a3 {[%emt 0:00:07]} Bxc3+ {[%emt 0:01:07]} 7. bxc3 {[%emt 0:00:06]} dxc4 {[%emt 0:00:11]} 8. Bxc4 {[%emt 0:00:05]} c5 {[%emt 0:00:07]} 9. Ne2 {[%emt 0:00:05]} Qc7 {[%emt 0:00:41]} 10. Ba2 {[%emt 0:00:26]} b6 {[%emt 0:01:23] E49: Nimzo-Indian: Rubinstein: 5 Bd3 d5 6 a3 Bxc3+ 7 bxc3.} 11. O-O {[%emt 0:00:48]} Ba6 {[%emt 0:03:01]} 12. Re1 {[%emt 0:00:35] 12.Bb2 is the fancy move.} Rd8 {[%emt 0:02:54]} ({Don't play} 12... Ng4 13. Nf4 Nf6 14. e4 $16) 13. Ng3 {[%emt 0:00:25]} Nc6 {[%emt 0:03:14] [#]} 14. Rb1 $146 {[%emt 0:00:10]} ({Predecessor:} 14. Bb2 Na5 15. e4 Bc4 16. Bxc4 Nxc4 17. Bc1 cxd4 18. cxd4 Qd7 19. e5 Nd5 20. Qg4 f5 21. exf6 Nxf6 {½-½ (36) Rakhmanov,A (2651)-Sychev,K (2556) Bryansk 2021}) 14... Rac8 {[%emt 0:11:36]} 15. Rb2 {[%emt 0:00:32]} h6 {[%emt 0:02:10]} 16. f4 {[%emt 0:01:36]} Na5 {[%emt 0:01:58]} 17. e4 {[%emt 0:11:07] The position is equal.} cxd4 {[%emt 0:11:21]} 18. cxd4 {[%emt 0:00:13]} Qd7 {[%emt 0:12:22]} 19. Rd2 {[%emt 0:30:02]} Bc4 {[%emt 0:01:39] Against d5} 20. Bxc4 {[%emt 0:01:24]} Rxc4 {[%emt 0:05:38]} 21. Bb2 {[%emt 0:00:10][%cal Od4d5]} Qa4 {[%emt 0:05:55]} 22. d5 {[%emt 0:10:43] [#] Hoping for Qxa4.} Qxd1 {[%emt 0:01:59]} 23. Rdxd1 {[%emt 0:00:06]} exd5 {[%emt 0:02:06]} 24. Bxf6 {[%emt 0:05:25]} gxf6 {[%emt 0:00:07]} 25. Rxd5 {[%emt 0:10:28]} Rxd5 {[%emt 0:04:00]} 26. exd5 {[%emt 0:00:04] Black should prevent d6.} Rxf4 $11 {[%emt 0:00:52][%mdl 4096] Endgame KRN-KRN} 27. Re8+ {[%emt 0:05:00]} Kh7 {[%emt 0:00:17]} 28. Re7 {[%emt 0:00:04]} Rd4 {[%emt 0:05:01]} 29. Rxf7+ {[%emt 0:05:59]} Kg6 {[%emt 0:00:22]} 30. Rxa7 {[%emt 0:00:05][%cal Oa7g7]} Rxd5 {[%emt 0:00:20]} 31. Ne2 {[%emt 0:04:00] [#] And now Nf4+ would win.} Rd2 {[%emt 0:00:51]} 32. Kf2 {[%emt 0:00:46]} Nc6 {[%emt 0:01:24]} 33. Ra8 {[%emt 0:01:06]} Nd4 {[%emt 0:02:30]} 34. Ke3 {[%emt 0:01:06][%csl LRd2,LRd4]} Rxe2+ {[%emt 0:00:24]} 35. Kxd4 {[%emt 0:00:03]} Kf7 {[%emt 0:04:18]} 36. Ra7+ {[%emt 0:01:36]} Kg6 {[%emt 0:00:05]} 37. Ra8 {[%emt 0:00:04]} Kf7 {[%emt 0:02:29]} 38. Ra7+ {[%emt 0:00:07]} Kg6 {[%emt 0:00:06]} 39. Ra8 {[%emt 0:00:09] An interesting draw.  Weighted Error Value: White=0.01 (flawless) /Black=0.02 (flawless)} 1/2-1/2

[Event "American Cup Champions 2022"]
[Site "Saint Louis"]
[Date "2022.04.22"]
[Round "2.1"]
[White "Aronian, Levon"]
[Black "Dominguez Perez, Leinier"]
[Result "0-1"]
[ECO "C42"]
[WhiteElo "2772"]
[BlackElo "2752"]
[Annotator "TA"]
[PlyCount "56"]
[EventDate "2022.04.20"]
[EventType "k.o."]
[EventCountry "USA"]
[SourceTitle "playchess.com"]
[Source "ChessBase"]
[SourceQuality "1"]
[TimeControl "5400+30"]

{[%evp 13,56,9,20,20,14,17,12,20,21,0,0,-31,-17,-4,-41,-47,-35,-49,-37,-36,-46,-45,-54,-44,-17,-69,-59,-72,-55,-130,-130,-121,-127,-122,-120,-112,-117,-770,-735,-1987,-1981,-1792,-1771,-29961,-5477]} 1. e4 {[%emt 0:00:03]} e5 {[%emt 0:00:57]} 2. Nf3 {[%emt 0:00:07]} Nf6 {[%emt 0:00:07]} 3. Nxe5 {[%emt 0:00:05]} d6 {[%emt 0:00:06]} 4. Nf3 {[%emt 0:00:03]} Nxe4 {[%emt 0:00:05]} 5. Nc3 {[%emt 0:00:04]} Nxc3 {[%emt 0:00:32]} 6. dxc3 {[%emt 0:00:05]} Be7 {[%emt 0:00:13]} 7. Be3 {[%emt 0:00:05]} O-O {[%emt 0:01:32]} 8. Qd2 {[%emt 0:00:04] C42: Petroff Defence: 3 Nxe5 and unusual White 3rd moves.} Nd7 {[%emt 0:00:06]} 9. O-O-O {[%emt 0:00:06]} Nf6 {[%emt 0:00:24]} 10. Bd3 {[%emt 0:00:15] The position is equal.} Re8 {[%emt 0:00:30]} 11. h4 {[%emt 0:00:50]} d5 {[%emt 0:02:19]} 12. Ng5 {[%emt 0:08:23][%cal Bf3g5,Bg5h3,Bh3f4][%mdl 32]} h6 {[%emt 0:25:54]} 13. f3 {[%emt 0:01:17] Inhibits Ng4.} c5 {[%emt 0:01:03] [#] ...c4 is the strong threat.} ({Don't play} 13... hxg5 14. hxg5 Nd7 15. Bh7+ Kf8 16. Qxd5 $14) 14. Bb5 $146 {[%emt 0:21:02]} ({Predecessor:} 14. g4 Qa5 15. Kb1 c4 16. Be2 Bc5 17. Bxc5 Qxc5 18. Nh3 Qe3 19. Nf4 Qxd2 20. Rxd2 {0-1 (29) Borisek,J (2578)-Bogner,S (2619) Batumi 2018}) 14... Bd7 {[%emt 0:13:26]} ({Don't take} 14... hxg5 15. hxg5 Bd7 16. Bd3 $18) 15. Bxd7 {[%emt 0:00:05]} Qxd7 {[%emt 0:00:07]} 16. Nh3 {[%emt 0:00:03]} Rad8 {[%emt 0:01:42][%cal Od5d4]} 17. Nf4 {[%emt 0:05:05]} Bd6 {[%emt 0:08:14] And now ...Qa4 would win.} 18. Kb1 {[%emt 0:01:08]} Qb5 {[%emt 0:13:30][%cal Od5d4]} 19. Qc1 {[%emt 0:01:41]} (19. Rde1 $11) 19... d4 $15 {[%emt 0:05:05]} 20. cxd4 {[%emt 0:00:09]} c4 {[%emt 0:00:18][%cal Bc5c4,Bc4c3][%mdl 32]} 21. g3 {[%emt 0:09:02]} ({White should try} 21. Ka1 $15) 21... c3 $1 $17 {[%mdl 1024] Black has strong compensation.} 22. b3 {[%emt 0:00:30]} Qa5 {Threatens to win with ...Ba3.} 23. Rde1 {[%emt 0:00:30]} Ba3 $36 {[%mdl 2048] Black is in control.} 24. Qd1 {[%emt 0:00:30]} Rd6 $1 {0x0.00299f40ae99dp-1022s more active pieces.} 25. Bf2 $2 {[%emt 0:00:30][%mdl 8192] This move loses the game for White.} (25. Bc1 $17 Ra6 26. Rxe8+ Nxe8 27. Re1) 25... Rxe1 $19 26. Rxe1 {[%emt 0:00:30] [#]} Bb2 $1 27. Qd3 {[%emt 0:00:30]} b5 28. a4 {[%emt 0:00:30] [#]} Qb4 $1 {Weighted Error Value: White=0.71/Black=0.01 (flawless)} 0-1